bitfinex/quotes_BTCUSD_20241013
["timestamp","ask_amount","ask_price","bid_price","bid_amount"]
[1728785008662,0.08302665,63035.0,63034.0,1.02581507]
[1728785009301,0.002,63035.0,63034.0,1.02581507]
[1728785010364,0.002,63035.0,63034.0,1.12504191]
[1728785011448,0.00282,63035.0,63034.0,1.12504191]
[1728785011864,0.02767238,63035.0,63034.0,1.12504191]
[1728785016831,0.02493475,63035.0,63034.0,1.12504191]
[1728785017247,8.237e-05,63035.0,63034.0,1.12504191]
[1728785017669,8.237e-05,63035.0,63034.0,1.13598617]
[1728785020624,8.237e-05,63035.0,63034.0,1.14095488]
[1728785021039,8.237e-05,63035.0,63034.0,1.13195488]
[1728785021252,8.237e-05,63035.0,63034.0,1.13995488]
[1728785021253,0.00108237,63035.0,63034.0,1.13995488]
[1728785021891,0.00108237,63035.0,63034.0,1.13095488]
[1728785022101,0.02693487,63035.0,63034.0,1.13895488]
[1728785022591,0.02593487,63035.0,63034.0,1.13095488]
[1728785023054,0.02593487,63035.0,63034.0,1.13895488]
[1728785023055,0.02693487,63035.0,63034.0,1.13895488]
[1728785024154,0.02693487,63035.0,63034.0,1.14095488]
[1728785024363,0.02693487,63035.0,63034.0,1.13895488]
[1728785025233,0.02693487,63035.0,63034.0,1.14690439]
[1728785027026,0.02693487,63035.0,63034.0,1.32973123]
[1728785027263,0.0911,63048.0,63047.0,0.158611]
[1728785027495,0.0911,63048.0,63047.0,0.80744346]
[1728785027723,0.0911,63048.0,63047.0,0.81809778]
[1728785028823,0.0971,63048.0,63047.0,0.81809778]
[1728785029035,0.0911,63048.0,63047.0,0.81809778]
[1728785029657,0.0941,63048.0,63047.0,0.81809778]
[1728785029878,0.0941,63048.0,63047.0,0.83372806]
[1728785030123,0.0991,63048.0,63047.0,0.83372806]
[1728785030337,0.0961,63048.0,63047.0,0.83372806]
[1728785030574,0.0991,63048.0,63047.0,0.83372806]
[1728785033836,0.0991,63048.0,63047.0,0.88855806]
[1728785034684,0.0911,63048.0,63047.0,0.88855806]
[1728785034915,0.00164,63050.0,63049.0,0.190436]
[1728785035130,0.00164,63050.0,63049.0,0.34093588]
[1728785035337,0.02648762,63050.0,63049.0,0.35157841]
[1728785036202,0.02648762,63050.0,63049.0,0.35757841]
[1728785037068,0.02648762,63050.0,63049.0,0.20707853]
[1728785037505,0.02648762,63050.0,63049.0,0.21307853]
[1728785037717,0.00164,63050.0,63049.0,0.21307853]
[1728785038375,0.00164,63050.0,63049.0,0.84004989]
[1728785038797,0.10144,63050.0,63049.0,0.67844389]
[1728785039013,0.10144,63050.0,63049.0,0.67544389]
[1728785039483,0.10144,63050.0,63049.0,0.67844389]
[1728785040010,0.341144,63050.0,63049.0,0.67844389]
[1728785040262,0.341144,63050.0,63049.0,0.68144389]
[1728785040263,0.18254,63050.0,63049.0,0.68144389]
[1728785040513,0.18254,63050.0,63049.0,0.01664253]
[1728785040514,0.341144,63050.0,63049.0,0.01664253]
[1728785040767,0.341144,63050.0,63049.0,0.01364253]
[1728785040976,0.341144,63050.0,63049.0,0.006]
[1728785041413,0.341144,63050.0,63049.0,0.003]
[1728785041627,0.158612,63047.0,63043.0,0.03183]
[1728785041838,0.0998,63045.0,63044.0,0.01058531]
[1728785043210,0.0998,63045.0,63044.0,0.01258531]
[1728785043542,0.0998,63045.0,63044.0,0.002]
[1728785044241,0.0998,63045.0,63044.0,0.01261627]
[1728785044445,0.0998,63045.0,63044.0,0.01461627]
[1728785045171,0.0998,63045.0,63044.0,0.004]
[1728785045638,0.0998,63045.0,63044.0,0.01461627]
[1728785050188,0.0998,63045.0,63044.0,0.17323527]
[1728785051085,0.0998,63045.0,63044.0,0.01461627]
[1728785051349,0.09964378,63045.0,63044.0,0.01461627]
[1728785051576,0.09964378,63045.0,63044.0,0.17323527]
[1728785051807,0.09964378,63045.0,63044.0,0.16923527]
[1728785052353,0.12449292,63045.0,63044.0,0.01161627]
[1728785053061,0.12449292,63045.0,63044.0,0.01261627]
[1728785053481,0.12449292,63045.0,63044.0,0.16923527]
[1728785055256,0.12449292,63045.0,63044.0,0.01061627]
[1728785055507,0.12449292,63045.0,63044.0,0.16923527]
[1728785058374,0.09964378,63045.0,63044.0,0.16923527]
[1728785062174,0.09413804,63045.0,63044.0,0.16923527]
[1728785062665,0.11898727,63045.0,63044.0,0.16923527]
[1728785068013,0.09413804,63045.0,63044.0,0.16923527]
[1728785071573,0.09413804,63045.0,63044.0,0.17087527]
[1728785071845,0.09495804,63045.0,63044.0,0.17087527]
[1728785073035,0.09495804,63045.0,63044.0,0.17104827]
[1728785074408,0.09495804,63045.0,63044.0,0.17204827]
[1728785075800,0.00082,63045.0,63044.0,0.2558872]
[1728785076493,0.00082,63045.0,63044.0,0.2568872]
[1728785076724,0.00082,63045.0,63044.0,0.2558872]
[1728785077436,0.00082,63045.0,63044.0,0.2578872]
[1728785078133,0.00082,63045.0,63044.0,0.2568872]
[1728785078373,0.00082,63045.0,63044.0,0.26385508]
[1728785082021,0.00082,63045.0,63044.0,0.2588872]
[1728785090556,0.02566813,63045.0,63044.0,0.2588872]
[1728785094427,0.00082,63045.0,63044.0,0.2588872]
[1728785101654,0.02566826,63045.0,63044.0,0.2588872]
[1728785104569,0.00082,63045.0,63044.0,0.2588872]
[1728785107413,0.3348599,63050.0,63046.0,0.158612]
[1728785107647,0.2378819,63050.0,63046.0,0.22415938]
[1728785107885,0.02484831,63050.0,63047.0,0.158611]
[1728785108122,0.02484831,63050.0,63047.0,0.16920406]
[1728785108363,0.02484831,63050.0,63048.0,0.158608]
[1728785108578,0.02484831,63050.0,63049.0,0.06396334]
[1728785108812,0.02484831,63050.0,63049.0,0.07454461]
[1728785109728,0.02784831,63050.0,63049.0,0.07454461]
[1728785110223,0.02484831,63050.0,63049.0,0.07454461]
[1728785110460,0.02784831,63050.0,63049.0,0.07454461]
[1728785110667,0.12514831,63050.0,63049.0,0.01058127]
[1728785110880,0.0973,63049.0,63047.0,0.158611]
[1728785112818,0.0993,63049.0,63047.0,0.158611]
[1728785113027,0.0993,63049.0,63048.0,0.24465354]
[1728785113889,0.12214798,63049.0,63048.0,0.24465354]
[1728785114120,0.12414798,63049.0,63048.0,0.24465354]
[1728785114329,0.12414798,63049.0,63048.0,0.08604454]
[1728785114773,0.12414798,63049.0,63048.0,0.0966317]
[1728785117563,0.0993,63049.0,63048.0,0.0966317]
[1728785118433,0.10012,63049.0,63048.0,0.0966317]
[1728785118647,0.10012,63049.0,63048.0,0.01058716]
[1728785119076,0.10012,63049.0,63046.0,0.22415938]
[1728785119294,0.09812,63049.0,63048.0,0.01060433]
[1728785119526,0.10012,63049.0,63048.0,0.01060433]
[1728785119736,0.10012,63049.0,63048.0,0.16921333]
[1728785120027,0.09812,63049.0,63048.0,0.158609]
[1728785120268,0.09812,63049.0,63048.0,0.01060433]
[1728785120690,0.12296797,63049.0,63048.0,0.158609]
[1728785120903,0.12396797,63049.0,63048.0,0.16921333]
[1728785121325,0.12396797,63049.0,63048.0,0.01060433]
[1728785121745,0.12396797,63049.0,63048.0,0.01866346]
[1728785121957,0.12396797,63049.0,63048.0,0.02926779]
[1728785122161,0.12296797,63049.0,63048.0,0.02926779]
[1728785122370,0.11958756,63049.0,63048.0,0.02926779]
[1728785124287,0.09473959,63049.0,63048.0,0.02926779]
[1728785124728,0.09473959,63049.0,63048.0,0.18787679]
[1728785126014,0.09473959,63049.0,63048.0,0.02926779]
[1728785128817,0.1195876,63049.0,63048.0,0.02926779]
[1728785129064,0.1185876,63049.0,63048.0,0.02926779]
[1728785129577,0.1195876,63049.0,63048.0,0.01060433]
[1728785129804,0.1195876,63049.0,63048.0,0.01224433]
[1728785131823,0.1185876,63049.0,63048.0,0.01224433]
[1728785132049,0.1195876,63049.0,63048.0,0.01224433]
[1728785132263,0.2781936,63049.0,63048.0,0.01224433]
[1728785132486,0.1195876,63049.0,63048.0,0.01224433]
[1728785132934,0.5160755,63049.0,63048.0,0.01224433]
[1728785133153,0.4572936,63049.0,63048.0,0.01224433]
[1728785133375,0.43244559,63049.0,63048.0,0.00164]
[1728785133802,0.55162301,63049.0,63048.0,0.00164]
[1728785134457,0.43244559,63049.0,63048.0,0.00164]
[1728785134673,0.52776007,63049.0,63048.0,0.00164]
[1728785134896,0.52676007,63049.0,63048.0,0.00164]
[1728785135177,0.52976007,63049.0,63048.0,0.00164]
[1728785135398,0.52973185,63049.0,63048.0,0.00164]
[1728785135624,0.52673185,63049.0,63048.0,0.00164]
[1728785135853,0.52973065,63049.0,63048.0,0.00164]
[1728785136351,0.43444559,63049.0,63048.0,0.00164]
[1728785136597,0.45929735,63049.0,63048.0,0.00164]
[1728785137326,0.53073191,63049.0,63048.0,0.00164]
[1728785137572,0.45929735,63049.0,63048.0,0.00164]
[1728785138701,0.53071868,63049.0,63048.0,0.00164]
[1728785139386,0.45929735,63049.0,63048.0,0.00164]
[1728785140264,0.43444559,63049.0,63048.0,0.00164]
[1728785140478,0.48204608,63049.0,63048.0,0.00164]
[1728785142246,0.43444559,63049.0,63048.0,0.00164]
[1728785142465,0.48204608,63049.0,63048.0,0.00164]
[1728785142718,0.50689776,63049.0,63048.0,0.00164]
[1728785143848,0.45929727,63049.0,63048.0,0.00164]
[1728785144316,0.50689776,63049.0,63048.0,0.00164]
[1728785144534,0.45929727,63049.0,63048.0,0.00164]
[1728785146933,0.93444559,63049.0,63048.0,0.00164]
[1728785148596,0.95929877,63049.0,63048.0,0.00164]
[1728785156561,0.93444559,63049.0,63048.0,0.00164]
[1728785158461,1.89776434,63049.0,63048.0,0.00164]
[1728785158694,2.00799196,63049.0,63048.0,0.00164]
[1728785158953,1.86528459,63049.0,63048.0,0.00164]
[1728785159191,1.86228459,63049.0,63048.0,0.00164]
[1728785159422,2.00495075,63049.0,63048.0,0.00164]
[1728785159661,1.86228459,63049.0,63048.0,0.00164]
[1728785160342,2.00495243,63049.0,63048.0,0.0019652]
[1728785160572,1.86628459,63049.0,63048.0,0.0019652]
[1728785160822,0.439136,63037.0,63036.0,0.63297136]
[1728785161049,2.04292524,63037.0,63036.0,0.63297136]
[1728785161502,2.05952468,63037.0,63036.0,0.63297136]
[1728785161716,1.96441944,63037.0,63036.0,0.63297136]
[1728785162156,1.97541944,63037.0,63036.0,0.63397136]
[1728785162596,2.07045614,63037.0,63036.0,0.63397136]
[1728785163032,2.57045614,63037.0,63036.0,0.63397136]
[1728785163469,2.55945614,63037.0,63036.0,0.63297136]
[1728785163923,2.58245614,63037.0,63036.0,0.63497136]
[1728785164145,2.57145614,63037.0,63036.0,0.63397136]
[1728785164355,2.56945614,63037.0,63036.0,0.63397136]
[1728785164593,2.58145614,63037.0,63036.0,0.63497136]
[1728785164808,2.58345614,63037.0,63036.0,0.63661136]
[1728785165023,2.58145614,63037.0,63036.0,0.63661136]
[1728785165425,2.25984844,63037.0,63036.0,0.63661136]
[1728785165686,2.22383944,63037.0,63036.0,0.63161136]
[1728785166176,1.49288544,63037.0,63036.0,0.63161136]
[1728785167726,1.49988544,63037.0,63036.0,0.63161136]
[1728785168183,1.49988544,63037.0,63035.0,0.00164]
[1728785168184,0.007,63036.0,63035.0,0.00164]
[1728785168422,0.007,63036.0,63024.0,0.0009837]
[1728785168423,0.941867,63025.0,63024.0,0.0009837]
[1728785168636,1.543387,63025.0,63024.0,1.5068656]
[1728785168851,1.543387,63025.0,63024.0,1.268]
[1728785169725,1.543387,63025.0,63024.0,1.168]
[1728785170388,1.63743693,63025.0,63024.0,1.00933]
[1728785170610,2.13739151,63025.0,63024.0,0.85066]
[1728785170828,2.066387,63025.0,63024.0,0.85066]
[1728785171338,2.1373871,63025.0,63024.0,0.85066]
[1728785171570,2.094387,63025.0,63024.0,0.85066]
[1728785172028,2.080387,63025.0,63024.0,0.85066]
[1728785172265,0.7832,63014.0,63013.0,0.50181984]
[1728785172482,4.417624,63014.0,63013.0,0.50181984]
[1728785172718,4.600947,63014.0,63013.0,0.50181984]
[1728785172948,4.324094,63014.0,63013.0,0.50181984]
[1728785173423,4.257044,63014.0,63013.0,0.50181984]
[1728785174204,4.757044,63014.0,63013.0,0.50181984]
[1728785174475,4.794044,63014.0,63013.0,0.34312484]
[1728785174722,4.808044,63014.0,63013.0,0.34312484]
[1728785174948,4.808044,63014.0,63013.0,0.18442984]
[1728785175421,4.029297,63014.0,63013.0,0.18442984]
[1728785175651,3.801152,63014.0,63013.0,0.18442984]
[1728785176344,3.82602722,63014.0,63013.0,0.18442984]
[1728785176562,3.84002722,63014.0,63013.0,0.18442984]
[1728785176775,3.85662666,63014.0,63013.0,0.18442984]
[1728785176959,3.85662666,63014.0,63013.0,0.18606984]
[1728785177663,3.87062666,63014.0,63013.0,0.18606984]
[1728785182513,0.463207,63009.0,63002.0,0.00082]
[1728785182948,4.281734,63009.0,63002.0,0.00082]
[1728785183832,4.309734,63009.0,63002.0,0.00082]
[1728785184938,4.30960704,63009.0,63002.0,0.00082]
[1728785186046,3.52222304,63009.0,63002.0,0.00082]
[1728785187184,0.49108004,63009.0,63002.0,0.00082]
[1728785187400,3.52222304,63009.0,63002.0,0.00082]
[1728785187610,3.48206804,63009.0,63002.0,0.00082]
[1728785188507,3.26992604,63009.0,63002.0,0.00082]
[1728785192451,2.54229004,63009.0,63002.0,0.00082]
[1728785194571,2.54029004,63009.0,63002.0,0.00082]
[1728785194788,2.51299104,63009.0,63002.0,0.00082]
[1728785195442,2.51099104,63009.0,63002.0,0.00082]
[1728785195662,1.44509204,63009.0,63002.0,0.00082]
[1728785196102,1.44709204,63009.0,63002.0,0.00082]
[1728785199387,0.61236404,63009.0,63002.0,0.00082]
[1728785200722,0.61436404,63009.0,63002.0,0.00082]
[1728785201397,0.61518404,63009.0,63002.0,0.00082]
[1728785203157,0.61318404,63009.0,63002.0,0.00082]
[1728785203385,0.89368904,63009.0,63005.0,0.0996]
[1728785204324,1.39368904,63009.0,63005.0,0.0996]
[1728785204980,1.29240004,63009.0,63005.0,0.0996]
[1728785205873,1.40958904,63009.0,63005.0,0.0996]
[1728785207669,1.39758904,63009.0,63002.0,0.00082]
[1728785208366,1.41158904,63009.0,63002.0,0.00082]
[1728785208586,1.39758904,63009.0,63002.0,0.00082]
[1728785209025,1.41158904,63009.0,63002.0,0.00082]
[1728785209493,1.39758904,63009.0,63002.0,0.00082]
[1728785210813,1.41158904,63009.0,63002.0,0.00082]
[1728785212733,1.50620105,63009.0,63002.0,0.00082]
[1728785213470,1.41158904,63009.0,63002.0,0.00082]
[1728785216359,1.55350706,63009.0,63002.0,0.00082]
[1728785216561,1.41158904,63009.0,63002.0,0.00082]
[1728785216778,2.48347104,63009.0,63002.0,0.00082]
[1728785217034,2.36193104,63009.0,63002.0,0.00082]
[1728785222274,2.35993104,63009.0,63002.0,0.00082]
[1728785222927,2.21601004,63009.0,63002.0,0.00082]
[1728785223405,2.21801004,63009.0,63002.0,0.00082]
[1728785224732,2.12255204,63009.0,63002.0,0.00082]
[1728785227216,2.12055204,63009.0,63002.0,0.00082]
[1728785227472,1.74113604,63009.0,63002.0,0.00082]
[1728785229670,1.66789404,63009.0,63002.0,0.00082]
[1728785232854,1.57385704,63009.0,63002.0,0.00082]
[1728785233925,1.57585704,63009.0,63002.0,0.00082]
[1728785235050,1.57385704,63009.0,63002.0,0.00082]
[1728785236279,1.55595004,63009.0,63002.0,0.00082]
[1728785236704,1.45869604,63009.0,63002.0,0.00082]
[1728785238727,1.42853204,63009.0,63002.0,0.00082]
[1728785238943,1.41351504,63009.0,63002.0,0.00082]
[1728785241575,1.43265504,63009.0,63002.0,0.00082]
[1728785243524,1.40897004,63009.0,63002.0,0.00082]
[1728785250581,1.287527,63009.0,63008.0,0.179621]
[1728785251524,1.273527,63009.0,63008.0,0.179621]
[1728785251749,1.287527,63009.0,63008.0,0.179621]
[1728785251997,1.273527,63009.0,63008.0,0.179621]
[1728785253145,1.259527,63009.0,63008.0,0.179621]
[1728785253609,1.287527,63009.0,63008.0,0.179621]
[1728785253820,1.286627,63009.0,63008.0,0.179621]
[1728785254074,1.286527,63009.0,63008.0,0.179621]
[1728785254747,1.285627,63009.0,63008.0,0.179621]
[1728785254959,1.285527,63009.0,63008.0,0.179621]
[1728785255606,1.284827,63009.0,63008.0,0.179621]
[1728785255839,1.284727,63009.0,63008.0,0.179621]
[1728785256298,1.284527,63009.0,63008.0,0.179621]
[1728785256518,1.284127,63009.0,63008.0,0.179621]
[1728785256734,1.284027,63009.0,63008.0,0.179621]
[1728785256950,1.283927,63009.0,63008.0,0.179621]
[1728785257166,1.283527,63009.0,63008.0,0.179621]
[1728785257394,1.283127,63009.0,63008.0,0.179621]
[1728785257609,1.282927,63009.0,63008.0,0.179621]
[1728785257891,1.282827,63009.0,63008.0,0.179621]
[1728785258136,1.282527,63009.0,63008.0,0.179621]
[1728785263468,1.40121832,63009.0,63008.0,0.179621]
[1728785264216,1.282527,63009.0,63008.0,0.179621]
[1728785264438,1.40120434,63009.0,63008.0,0.179621]
[1728785265619,1.282527,63009.0,63008.0,0.179621]
[1728785267749,1.37744983,63009.0,63008.0,0.179621]
[1728785268498,1.282527,63009.0,63008.0,0.179621]
[1728785269450,1.3537108,63009.0,63008.0,0.179621]
[1728785270160,1.282527,63009.0,63008.0,0.179621]
[1728785270616,1.268527,63009.0,63008.0,0.179621]
[1728785270844,1.279527,63009.0,63008.0,0.179621]
[1728785271065,1.31598039,63009.0,63008.0,0.17974796]
[1728785271341,1.274527,63009.0,63008.0,0.17974796]
[1728785272046,1.266527,63009.0,63008.0,0.17974796]
[1728785272495,1.277527,63009.0,63008.0,0.17974796]
[1728785272981,1.266527,63009.0,63008.0,0.17974796]
[1728785273400,1.272527,63009.0,63008.0,0.17974796]
[1728785275021,1.272527,63009.0,63008.0,0.179621]
[1728785275257,1.272527,63009.0,63008.0,0.17974796]
[1728785280094,1.172527,63009.0,63008.0,0.17974796]
[1728785281995,1.01882,63009.0,63008.0,0.17974796]
[1728785282708,1.177527,63009.0,63008.0,0.17974796]
[1728785286569,1.01882,63009.0,63008.0,0.17974796]
[1728785286837,1.177527,63009.0,63008.0,0.17974796]
[1728785289394,1.177527,63009.0,63008.0,0.000821]
[1728785289627,1.22494872,63009.0,63008.0,0.000821]
[1728785289855,1.177527,63009.0,63008.0,0.000821]
[1728785290541,1.24865958,63009.0,63008.0,0.000821]
[1728785291431,1.34865958,63009.0,63008.0,0.000821]
[1728785291665,1.277527,63009.0,63008.0,0.000821]
[1728785292115,1.3960813,63009.0,63008.0,0.000821]
[1728785293053,1.277527,63009.0,63008.0,0.000821]
[1728785294927,1.453727,63009.0,63008.0,0.000821]
[1728785295399,1.5960394,63009.0,63008.0,0.000821]
[1728785295839,1.5900394,63009.0,63008.0,0.000821]
[1728785296071,1.447727,63009.0,63008.0,0.000821]
[1728785296576,1.461727,63009.0,63008.0,0.000821]
[1728785296801,1.449727,63009.0,63008.0,0.000821]
[1728785297492,1.463727,63009.0,63008.0,0.000821]
[1728785298148,1.60606898,63009.0,63008.0,0.000821]
[1728785298380,1.60606697,63009.0,63008.0,0.000821]
[1728785299350,1.463727,63009.0,63008.0,0.000821]
[1728785300710,1.60604123,63009.0,63008.0,0.000821]
[1728785301155,1.60804123,63009.0,63008.0,0.000821]
[1728785301380,1.463727,63009.0,63008.0,0.000821]
[1728785302088,1.91577604,63009.0,63008.0,0.000821]
[1728785302304,1.95325579,63009.0,63008.0,0.000821]
[1728785302523,2.11335724,63009.0,63008.0,0.000821]
[1728785302770,1.95325579,63009.0,63008.0,0.000821]
[1728785302984,1.91577604,63009.0,63008.0,0.000821]
[1728785303672,1.90177604,63009.0,63008.0,0.000821]
[1728785304094,1.91577604,63009.0,63008.0,0.000821]
[1728785304516,2.07578716,63009.0,63008.0,0.000821]
[1728785305406,1.91577604,63009.0,63008.0,0.000821]
[1728785309430,2.07574817,63009.0,63008.0,0.000821]
[1728785309674,1.91577604,63009.0,63008.0,0.000821]
[1728785312152,2.07574817,63009.0,63008.0,0.000821]
[1728785312580,1.91577604,63009.0,63008.0,0.000821]
[1728785313029,2.06990206,63009.0,63008.0,0.000821]
[1728785313258,1.91577604,63009.0,63008.0,0.000821]
[1728785313931,1.47060004,63009.0,63008.0,0.000821]
[1728785314135,4.24767704,63009.0,63008.0,0.000821]
[1728785314365,3.73627692,63009.0,63008.0,0.000821]
[1728785314573,3.69169704,63009.0,63008.0,0.000821]
[1728785316926,3.85163101,63009.0,63008.0,0.000821]
[1728785317353,3.69169704,63009.0,63008.0,0.000821]
[1728785317604,3.8515531,63009.0,63008.0,0.000821]
[1728785320458,3.69169704,63009.0,63008.0,0.000821]
[1728785321140,3.8515531,63009.0,63008.0,0.000821]
[1728785323281,3.69169704,63009.0,63008.0,0.000821]
[1728785323928,3.8515531,63009.0,63008.0,0.000821]
[1728785324131,3.69169704,63009.0,63008.0,0.000821]
[1728785324339,3.6427961,63009.0,63008.0,0.000821]
[1728785324998,3.48294004,63009.0,63008.0,0.000821]
[1728785325651,3.78191704,63009.0,63008.0,0.000821]
[1728785325856,3.85923641,63009.0,63008.0,0.000821]
[1728785327635,4.01910262,63009.0,63008.0,0.000821]
[1728785328693,3.74000162,63009.0,63008.0,0.000821]
[1728785328904,3.66268225,63009.0,63008.0,0.000821]
[1728785329560,3.52433325,63009.0,63008.0,0.000821]
[1728785330597,3.36446704,63009.0,63008.0,0.000821]
[1728785333536,2.13776004,63009.0,63008.0,0.000821]
[1728785333748,2.09621896,63009.0,63008.0,0.000821]
[1728785333958,1.93628461,63009.0,63008.0,0.000821]
[1728785334613,2.09621896,63009.0,63008.0,0.000821]
[1728785335296,1.93628461,63009.0,63008.0,0.000821]
[1728785335960,1.96116179,63009.0,63008.0,0.000821]
[1728785340633,1.78496179,63009.0,63008.0,0.000821]
[1728785341504,1.75523279,63009.0,63008.0,0.000821]
[1728785341713,1.64677979,63009.0,63008.0,0.000821]
[1728785343965,0.62787304,63002.0,63001.0,1e-06]
[1728785344214,0.62787304,63002.0,62993.0,0.0018047]
[1728785344215,0.76561504,62995.0,62994.0,0.1743849]
[1728785344427,0.76561504,62995.0,62993.0,0.0018047]
[1728785344428,0.26561804,62994.0,62993.0,0.000821]
[1728785344650,1.28860804,62994.0,62993.0,0.000821]
[1728785344856,1.31625986,62994.0,62993.0,0.000821]
[1728785345342,1.27440382,62994.0,62993.0,0.000821]
[1728785345796,1.04009786,62994.0,62993.0,0.000821]
[1728785346012,1.08930687,62994.0,62993.0,0.000821]
[1728785346217,0.81407405,62994.0,62993.0,0.000821]
[1728785346424,0.76148605,62994.0,62993.0,0.000821]
[1728785347678,0.77548605,62994.0,62993.0,0.000821]
[1728785348089,0.78948605,62994.0,62993.0,0.000821]
[1728785348334,0.79148605,62994.0,62993.0,0.000821]
[1728785348525,0.78948605,62994.0,62993.0,0.000821]
[1728785349857,0.29161804,62994.0,62993.0,0.000821]
[1728785350343,0.286745,62994.0,62993.0,0.000821]
[1728785351201,0.40537845,62994.0,62993.0,0.180921]
[1728785351416,0.286745,62994.0,62993.0,0.180921]
[1728785351633,0.38165749,62994.0,62993.0,0.180921]
[1728785352273,0.36765749,62994.0,62993.0,0.180921]
[1728785352481,0.35365749,62994.0,62993.0,0.180921]
[1728785352681,0.61953939,62994.0,62993.0,0.180921]
[1728785352904,0.36765749,62994.0,62993.0,0.180921]
[1728785353370,0.37765749,62994.0,62993.0,0.180921]
[1728785353988,0.36365749,62994.0,62993.0,0.180921]
[1728785354199,0.268745,62994.0,62993.0,0.180921]
[1728785354443,0.279745,62994.0,62993.0,0.180921]
[1728785357167,0.268745,62994.0,62993.0,0.180921]
[1728785357379,0.282745,62994.0,62993.0,0.100121]
[1728785357607,0.272745,62994.0,62993.0,0.000821]
[1728785358142,0.286745,62994.0,62993.0,0.000821]
[1728785358556,0.42909538,62994.0,62993.0,0.000821]
[1728785358756,0.286745,62994.0,62993.0,0.000821]
[1728785359544,0.42909538,62994.0,62993.0,0.000821]
[1728785360229,0.272745,62994.0,62993.0,0.000821]
[1728785360451,0.286745,62994.0,62993.0,0.000821]
[1728785360693,0.272745,62994.0,62993.0,0.000821]
[1728785361330,0.286745,62994.0,62993.0,0.000821]
[1728785373774,0.272745,62994.0,62993.0,0.000821]
[1728785373982,0.286745,62994.0,62993.0,0.000821]
[1728785374199,0.287565,62994.0,62993.0,0.000821]
[1728785374608,0.259565,62994.0,62993.0,0.000821]
[1728785374851,0.273565,62994.0,62993.0,0.000821]
[1728785375075,0.287565,62994.0,62993.0,0.000821]
[1728785375283,0.273565,62994.0,62993.0,0.000821]
[1728785375696,0.287565,62994.0,62993.0,0.000821]
[1728785376855,0.787565,62994.0,62993.0,0.000821]
[1728785377479,0.787565,62994.0,62993.0,0.094121]
[1728785380555,0.62882,62994.0,62993.0,0.19333486]
[1728785380783,0.72385639,62994.0,62993.0,0.17574796]
[1728785381256,0.61482,62994.0,62993.0,0.17574796]
[1728785381479,0.60082,62994.0,62993.0,0.17574796]
[1728785381720,0.66733814,62994.0,62993.0,0.17574796]
[1728785382157,0.66733814,62994.0,62993.0,0.16914796]
[1728785382158,0.67133814,62994.0,62993.0,0.16914796]
[1728785382612,0.62382,62994.0,62993.0,0.16914796]
[1728785382833,0.60982,62994.0,62993.0,0.16914796]
[1728785383574,0.61482,62994.0,62993.0,0.16914796]
[1728785384054,0.51482,62994.0,62993.0,0.40244054]
[1728785384324,0.51482,62994.0,62993.0,0.42544054]
[1728785385050,0.50582,62994.0,62993.0,0.42544054]
[1728785385988,0.50082,62994.0,62993.0,0.42544054]
[1728785386252,0.50182,62994.0,62993.0,0.42544054]
[1728785386563,0.50182,62994.0,62993.0,0.52466738]
[1728785386771,0.50182,62994.0,62993.0,0.17078796]
[1728785387304,0.660565,62994.0,62993.0,0.17078796]
[1728785388432,1.160565,62994.0,62993.0,0.00164]
[1728785389171,1.260565,62994.0,62993.0,0.00164]
[1728785389381,1.259565,62994.0,62993.0,0.00164]
[1728785389605,1.264565,62994.0,62993.0,0.00164]
[1728785390545,1.268565,62994.0,62993.0,0.00164]
[1728785392228,1.33981758,62994.0,62993.0,0.00164]
[1728785392928,1.33970413,62994.0,62993.0,0.00164]
[1728785394628,1.33971543,62994.0,62993.0,0.00164]
[1728785395591,1.268565,62994.0,62993.0,0.00164]
[1728785404152,0.83976222,62994.0,62993.0,0.00164]
[1728785404398,0.768565,62994.0,62993.0,0.00164]
[1728785407424,0.768565,62994.0,62993.0,0.09384]
[1728785408183,0.50982,62994.0,62993.0,0.1931938]
[1728785408425,0.50982,62994.0,62993.0,0.3519408]
[1728785408862,0.50982,62994.0,62993.0,0.1931938]
[1728785409090,0.50982,62994.0,62993.0,0.3519408]
[1728785410042,0.50982,62994.0,62993.0,0.4275408]
[1728785412624,0.50982,62994.0,62993.0,0.00176696]
[1728785413112,0.668565,62994.0,62993.0,0.00176696]
[1728785413350,0.668565,62994.0,62993.0,0.00164]
[1728785413853,0.81602697,62994.0,62993.0,0.00164]
[1728785414339,0.768565,62994.0,62993.0,0.00164]
[1728785415450,0.83975796,62994.0,62993.0,0.00164]
[1728785415680,0.83972189,62994.0,62993.0,0.00164]
[1728785420459,0.768565,62994.0,62993.0,0.00164]
[1728785420703,0.83973049,62994.0,62993.0,0.00164]
[1728785422335,0.945565,62994.0,62993.0,0.00164]
[1728785422553,1.04040546,62994.0,62993.0,0.00164]
[1728785423013,0.96447416,62994.0,62993.0,0.00164]
[1728785423239,0.95547416,62994.0,62993.0,0.00164]
[1728785423463,0.96647416,62994.0,62993.0,0.00164]
[1728785423697,0.9930736,62994.0,62993.0,0.00164]
[1728785424633,0.87446444,62994.0,62993.0,0.00164]
[1728785425134,0.87646444,62994.0,62993.0,0.00164]
[1728785425385,0.87446444,62994.0,62993.0,0.00164]
[1728785425632,1.50504444,62994.0,62993.0,0.00164]
[1728785425890,1.59168547,62994.0,62993.0,0.00164]
[1728785426121,1.44935448,62994.0,62993.0,0.00164]
[1728785426383,1.44935448,62994.0,62993.0,1e-06]
[1728785426384,1.49192176,62994.0,62993.0,1e-06]
[1728785426608,1.48092176,62994.0,62993.0,1e-06]
[1728785426851,1.47092176,62994.0,62993.0,1e-06]
[1728785427392,1.63904778,62994.0,62993.0,1e-06]
[1728785427629,1.47092176,62994.0,62993.0,1e-06]
[1728785427863,1.49792176,62994.0,62993.0,1e-06]
[1728785428830,4.03304548,62994.0,62993.0,1e-06]
[1728785429053,4.07679685,62994.0,62993.0,1e-06]
[1728785429296,2.50506485,62994.0,62993.0,1e-06]
[1728785429531,2.46131348,62994.0,62993.0,1e-06]
[1728785429773,2.6211222,62994.0,62993.0,1e-06]
[1728785430012,2.60809454,62994.0,62993.0,1e-06]
[1728785430204,2.44831348,62994.0,62993.0,1e-06]
[1728785431360,2.49088076,62994.0,62993.0,1e-06]
[1728785431603,2.49088076,62994.0,62973.0,0.00033819]